{"text_format":"1","workbook":"xlsx","n_sheets":1,"sheets":["Escalier"],"not_rendered":{"charts":0,"images":1,"macros":1,"external_links":0,"defined_names":23,"comments":0,"pivot_tables":0},"unopened":[],"bounds":{"document_bytes":16777216,"sheet_cells":100000,"rows_first":2000,"rows_last":500,"rows_between":2000,"halvings":0,"cell_chars":16384,"cell_head_chars":4096},"cells_cut":0,"cells_raw":0,"read":"whole","date_system":"1900"}

{"sheet":"Escalier","index":0,"n_rows":48,"n_cols":15,"rows_kept":48,"cut":false,"hidden":false,"merged":[[24,13,29,13],[22,7,27,7],[32,10,32,12],[1,1,1,14],[4,1,4,14],[9,11,13,11],[16,9,16,10],[6,1,7,1],[21,4,25,4],[25,5,29,5]]}
[]
[null,"CALCUL D'UN ESCALIER HÉLICOÏDAL"]
[null,null,null,null,null,null,null,null,null,null,null,null,null,null,"Lionel Ponnelle"]
[null,"Remarque : Entrez vos dimensions dans les cases grises. Vous pouvez modifier la \"Valeur du pas\" en cliquant sur les 2 boutons flèches."]
[null,"Vous pouvez ajuster le \"Reculement de départ\" en utilisant les boutons [+ 1 cm], [- 1 cm ], [+ 1 mm] ou [-1 mm], dans le cas où la longueur de l'escalier est limitée par une porte ou un passage (toutefois la valeur maxi ne peut pas être dépassée). Vous pouvez entrer une valeur dans la case \"Longueur réelle de l'escalier\". Les résultats sont affichés dans les cases bleues. Les cases jaunes affichent des données secondaires,"]
[]
[null,"Dimensions de la trémie\n  (largeur ou diamètre) :",150,null,null,null,null,null,null,{"$f":"Dimensions_trémie","v":150}]
[]
[null,"Diamètre du fût :",10]
[null,null,null,null,null,null,null,null,null,null,null,{"$f":"Dimensions_trémie","v":150}]
[null,"Largeur des marches :",{"$f":"(Dimensions_trémie-Diamètre_du_fût)/2","v":70}]
[]
[null,"Angle du palier ( 60 à 90° ) :",60]
[]
[null,"Rayon de la ligne de foulée ( 1/2 à 2/3 de la largeur de la marche ) :"]
[null,{"$f":"CONCATENATE(\"( de \",TEXT((Largeur_marches+Diamètre_du_fût)/2,0),\" cm à \",TEXT((Largeur_marches+Diamètre_du_fût)*2/3,0),\" cm )\")","v":"( de 40 cm à 53 cm )"},40]
[null,null,null,null,null,null,null,null,null,{"$f":"(Rayon_ligne_de_foulée*2)*3.14*(360-Angle_palier)/360","v":209.33333333333334}]
[]
[null,"Marche palière :",0,null,null,null,null,null,null,null,null,null,{"$f":"Marche_palière","v":0}]
[]
[null,"Epaisseur du palier :",10]
[null,null,null,null,{"$f":"Hauteur_escalier","v":280}]
[null,"Hauteur de l'escalier :",280,null,null,null,null,{"$f":"Echappée","v":200}]
[]
[null,"Hauteur de l'échappée :",200,null,null,null,null,null,null,null,null,null,null,{"$f":"Hauteur_sous_plafond","v":270}]
[null,null,null,null,null,{"$f":"Hauteur_escalier-Epaisseur_du_palier","v":270}]
[null,"Valeur du pas de foulée :",60]
[null,"Valeur réelle calculée :",{"$f":"2*Hauteur_marche+Giron","v":59.935714285714283}]
[]
[null,"Nombre de marches :",{"$f":"ROUND((2*Hauteur_escalier+Longueur_reelle)/Valeur_du_pas,0)","v":14}]
[null,"( valeur non arrondie ) :",{"$f":"(2*Hauteur_escalier+Longueur_reelle)/Valeur_du_pas","v":13.985000000000001},null,null,null,{"$f":"C37","v":49.830952380952368}]
[]
[null,"Hauteur de marche :",{"$f":"IF(Nombre_de_marches>0,Hauteur_escalier/Nombre_de_marches,0)","v":20},null,null,null,null,null,null,null,{"$f":"C44","v":45.092230651085444}]
[null,"Giron de la marche :",{"$f":"IF(Nombre_de_marches>0,Longueur_reelle/Nombre_de_marches,0)","v":19.935714285714287}]
[]
[]
[null,"Décalage de la 1ère marche :",{"$f":"Reculement-Longueur_trémie","v":49.830952380952368}]
[null,"à l'alignement de la trémie",null,null,null,null,null,null,null,{"$f":"Reculement","v":259.16428571428571}]
[]
[null,"Reculement de l'escalier :",{"$f":"Longueur_reelle-Giron+Marche_palière","v":259.16428571428571},null,null,null,null,null,null,{"$f":"Longueur_reelle","v":279.10000000000002}]
[]
[null,"Longueur réelle de l'escalier :",279.10000000000002,null,null,null,null,null,null,{"$f":"ROUND((Longueur_trémie-Marche_palière)*Hauteur_escalier/(Epaisseur_du_palier+Echappée),1)+Marche_palière","v":279.10000000000002}]
[]
[null,"Pente de l'escalier :",{"$f":"DEGREES(ATAN(Hauteur_escalier/Longueur_reelle))","v":45.092230651085444}]
[]
[null,"Angle total de l'escalier :",{"$f":"ROUND((360-Angle_palier)*(Reculement+Marche_palière)/Longueur_trémie,1)","v":371.4}]
[]
[null,"Angle de marche :",{"$f":"Angle_escalier/(Nombre_de_marches-1)","v":28.569230769230767},null,null,null,null,null,null,null,null,null,"mise à jour le 15-08-2017"]